bitfinex/quotes_SOLUSD_20251228
["timestamp","ask_amount","ask_price","bid_price","bid_amount"]
[1766906415849,0.71,124.27,124.25,0.71]
[1766906416360,0.71,124.27,124.24,2.65462003]
[1766906422079,0.71,124.27,124.24,0.71]
[1766906422376,0.71,124.27,124.24,2.65462003]
[1766906423454,0.71,124.27,124.25,1.94462003]
[1766906428775,0.71,124.27,124.25,2.65462003]
[1766906439994,0.71,124.27,124.25,3.74594211]
[1766906450396,5.43272986,124.26,124.25,3.74594211]
[1766906452098,5.43272986,124.26,124.25,0.71]
[1766906452281,5.43272986,124.26,124.25,3.74594211]
[1766906458796,5.43561352,124.26,124.25,3.74594211]
[1766906459110,0.71,124.27,124.25,3.74594211]
[1766906460906,0.66,124.28,124.25,3.74594211]
[1766906461086,5.43615114,124.27,124.25,3.74594211]
[1766906461903,5.43615114,124.27,124.26,0.69]
[1766906462919,5.43615114,124.27,124.25,3.72594211]
[1766906463816,5.43615114,124.27,124.25,0.69]
[1766906464113,5.43615114,124.27,124.25,3.72594211]
[1766906466015,6.09615114,124.27,124.25,3.72594211]
[1766906466214,0.66,124.27,124.25,3.72594211]
[1766906466880,6.09702368,124.27,124.25,3.72594211]
[1766906467084,0.66,124.27,124.25,3.72594211]
[1766906467694,6.09697298,124.27,124.25,3.72594211]
[1766906467885,0.66,124.27,124.25,3.72594211]
[1766906468606,6.09705174,124.27,124.25,3.72594211]
[1766906468808,0.66,124.27,124.25,3.72594211]
[1766906469502,6.09693709,124.27,124.25,3.72594211]
[1766906469695,0.66,124.27,124.25,3.72594211]
[1766906470095,6.09684661,124.27,124.25,3.72594211]
[1766906470294,0.66,124.27,124.25,3.72594211]
[1766906470787,6.0967529,124.27,124.25,3.72594211]
[1766906470987,0.66,124.27,124.25,3.72594211]
[1766906471402,6.0967529,124.27,124.25,3.72594211]
[1766906471699,0.66,124.27,124.25,3.72594211]
[1766906472200,6.09667403,124.27,124.25,3.72594211]
[1766906472410,0.66,124.27,124.25,3.72594211]
[1766906472815,6.09660542,124.27,124.25,3.72594211]
[1766906473125,0.66,124.27,124.25,3.72594211]
[1766906473602,6.09655541,124.27,124.25,3.72594211]
[1766906473805,0.66,124.27,124.25,3.72594211]
[1766906474303,6.09653869,124.27,124.25,3.72594211]
[1766906474511,0.66,124.27,124.25,3.72594211]
[1766906474894,6.096489,124.27,124.25,3.72594211]
[1766906475193,0.66,124.27,124.25,3.72594211]
[1766906475692,6.09646816,124.27,124.25,3.72594211]
[1766906475886,0.66,124.27,124.25,3.72594211]
[1766906476282,5.43746058,124.27,124.25,3.72594211]
[1766906484414,0.72,124.28,124.25,3.72594211]
[1766906484624,5.43773443,124.27,124.25,3.72594211]
[1766906484798,0.72,124.28,124.25,3.72594211]
[1766906484999,5.43773443,124.27,124.25,3.72594211]
[1766906485719,0.72,124.28,124.26,3.03594211]
[1766906486021,5.43761696,124.27,124.26,3.03594211]
[1766906487329,0.72,124.28,124.26,3.03594211]
[1766906487518,8.04506111,124.3,124.26,3.03594211]
[1766906487821,6.15771894,124.29,124.27,0.72]
[1766906488018,5.43771894,124.28,124.26,3.03594211]
[1766906488198,5.43771894,124.28,124.26,3.75594211]
[1766906488720,6.15771894,124.28,124.26,3.75594211]
[1766906489014,0.72,124.28,124.26,3.75594211]
[1766906499943,0.72,124.28,124.26,2.66270963]
[1766906505428,0.69,124.29,124.26,2.66270963]
[1766906508716,0.69,124.29,124.27,1.94270963]
[1766906513050,0.69,124.29,124.26,2.66270963]
[1766906519054,0.69,124.29,124.26,10.71032724]
[1766906540063,0.69,124.29,124.26,8.76761761]
[1766906541659,0.69,124.29,124.27,0.66]
[1766906542363,0.69,124.29,124.26,10.65032724]
[1766906545368,0.69,124.29,124.26,8.70761761]
[1766906545662,0.69,124.29,124.26,10.65032724]
[1766906561984,0.69,124.29,124.26,11.74278761]
[1766906566765,0.69,124.29,124.26,8.70761761]
[1766906567580,0.69,124.29,124.26,0.66]
[1766906567878,0.69,124.29,124.26,8.70759241]
[1766906569779,0.69,124.29,124.26,11.74276241]
[1766906575403,0.69,124.29,124.26,8.70759241]
[1766906575576,0.69,124.29,124.26,11.74276241]
[1766906582399,0.69,124.31,124.28,3.70517]
[1766906582603,0.69,124.33,124.3,3.70517]
[1766906584202,3.03517,124.33,124.29,11.75059793]
[1766906584497,0.69,124.32,124.29,11.75059793]
[1766906587196,3.03517,124.32,124.26,69.94542793]
[1766906587400,0.69,124.3,124.27,3.70517]
[1766906589008,0.69,124.3,124.27,0.67]
[1766906589715,0.69,124.29,124.27,0.67]
[1766906591221,0.69,124.29,124.26,8.04722321]
[1766906591392,0.69,124.28,124.26,8.04722321]
[1766906591804,0.69,124.28,124.26,8.71722321]
[1766906593403,0.69,124.29,124.26,8.71722321]
[1766906594992,0.69,124.29,124.26,11.75239321]
[1766906599426,0.69,124.29,124.26,11.08239321]
[1766906599629,0.69,124.29,124.27,0.71]
[1766906604234,0.69,124.29,124.26,11.79239321]
[1766906615456,0.69,124.29,124.26,11.08239321]
[1766906615938,0.69,124.29,124.26,11.79239321]
[1766906621967,0.69,124.29,124.26,10.69982354]
[1766906630345,0.69,124.29,124.26,2.65260033]
[1766906633779,0.69,124.29,124.26,0.71]
[1766906640975,0.69,124.29,124.26,2.65260033]
[1766906648982,0.69,124.29,124.26,0.71]
[1766906650187,0.69,124.29,124.24,8.04864744]
[1766906650359,0.69,124.29,124.25,2.65260033]
[1766906650761,0.68,124.28,124.25,2.65260033]
[1766906650982,0.68,124.28,124.26,0.71]
[1766906653282,0.68,124.28,124.25,2.65260033]
[1766906655787,0.68,124.28,124.26,0.68]
[1766906668884,0.68,124.28,124.25,9.9908588]
[1766906669206,0.68,124.28,124.26,0.68]
[1766906671201,0.68,124.28,124.24,8.04893754]
[1766906671420,0.68,124.28,124.25,0.68]
[1766906671722,0.68,124.28,124.25,2.62260033]
[1766906674238,0.68,124.28,124.25,8.72788069]
[1766906674523,0.68,124.28,124.25,10.67048102]
[1766906676930,0.68,124.28,124.25,8.72788069]
[1766906677106,0.68,124.28,124.25,10.67048102]
[1766906679532,0.68,124.28,124.25,9.99048102]
[1766906679732,0.68,124.28,124.25,10.67048102]
[1766906683941,0.68,124.28,124.25,11.76352908]
[1766906685537,0.68,124.28,124.25,11.08352908]
[1766906685831,0.68,124.28,124.26,0.66]
[1766906700553,0.68,124.28,124.25,0.7]
[1766906700849,0.68,124.28,124.25,3.73564839]
[1766906701441,0.68,124.28,124.26,0.7]
[1766906711305,0.69,124.26,124.23,0.7]
[1766906711577,0.69,124.26,124.21,20.12673148]
[1766906711578,0.69,124.24,124.21,0.7]
[1766906711783,3.72564839,124.23,124.2,0.7]
[1766906713687,0.69,124.23,124.2,3.73564839]
[1766906714185,16.60328573,124.28,124.2,11.08697745]
[1766906714486,0.69,124.25,124.22,0.7]
[1766906714983,0.67,124.24,124.22,0.7]
[1766906725197,0.67,124.26,124.23,3.72564839]
[1766906726201,0.67,124.25,124.23,0.69]
[1766906730597,0.67,124.25,124.22,3.03564839]
[1766906730803,3.70564839,124.25,124.22,0.69]
[1766906731802,0.67,124.25,124.22,3.72564839]
[1766906733903,0.67,124.25,124.22,0.69]
[1766906734198,0.67,124.25,124.22,3.72564839]
[1766906735077,0.67,124.24,124.21,0.69]
[1766906735279,0.67,124.24,124.21,3.72564839]
[1766906735684,0.67,124.24,124.22,0.69]
[1766906737412,0.67,124.25,124.22,3.72564839]
[1766906738210,0.67,124.25,124.22,0.69]
[1766906738397,0.67,124.25,124.22,3.72564839]
[1766906739618,0.67,124.24,124.22,0.69]
[1766906740822,3.70564839,124.23,124.2,0.69]
[1766906740995,0.67,124.22,124.2,0.69]
[1766906743414,0.67,124.22,124.19,3.72564839]
[1766906743614,0.67,124.22,124.19,0.69]
[1766906743789,0.67,124.22,124.19,3.72564839]
[1766906744115,3.03564839,124.23,124.18,0.2]
[1766906744116,0.67,124.2,124.18,0.2]
[1766906744708,0.67,124.2,124.18,0.89]
[1766906751319,8.04975381,124.23,124.18,0.89]
[1766906751621,0.66,124.21,124.18,2.83499202]
[1766906753218,0.66,124.21,124.18,0.89]
[1766906753399,0.66,124.21,124.18,2.83499202]
[1766906754814,0.66,124.21,124.18,10.88781214]
[1766906755021,0.66,124.21,124.19,0.72]
[1766906755718,0.66,124.21,124.18,10.91781214]
[1766906756120,0.66,124.21,124.19,0.72]
[1766906758422,1.94499202,124.23,124.19,0.72]
[1766906758617,0.68,124.22,124.19,0.72]
[1766906765029,0.68,124.21,124.19,0.72]
[1766906766333,1.94499202,124.22,124.19,0.72]
[1766906766504,2.62499202,124.22,124.19,0.72]
[1766906767533,0.68,124.21,124.19,0.72]
[1766906778741,1.94499202,124.21,124.18,0.88]
[1766906779227,0.66,124.2,124.18,0.88]
[1766906779836,0.66,124.2,124.18,0.2]
[1766906780217,0.66,124.2,124.18,0.88]
[1766906781235,1.94499202,124.21,124.18,0.2]
[1766906781442,2.60499202,124.21,124.19,0.68]
[1766906781942,2.60499202,124.21,124.18,0.2]
[1766906782237,2.60499202,124.21,124.18,0.88]
[1766906789357,0.66,124.21,124.18,0.88]
[1766906789652,6.09430676,124.21,124.18,0.88]
[1766906807568,6.13430676,124.2,124.17,0.2]
[1766906807759,0.7,124.2,124.18,0.72]
[1766906809155,0.7,124.18,124.16,0.2]
[1766906809364,3.73959529,124.18,124.16,0.2]
[1766906810271,0.7,124.18,124.16,0.2]
[1766906810769,3.73959529,124.18,124.16,0.2]
[1766906812770,0.7,124.18,124.16,0.2]
[1766906814858,0.7,124.18,124.16,0.87]
[1766906823893,0.69,124.2,124.17,3.03959529]
[1766906824173,0.69,124.2,124.18,3.70959529]
[1766906824381,0.69,124.2,124.18,0.67]
[1766906832392,0.69,124.2,124.17,3.70959529]
[1766906834390,0.69,124.2,124.17,0.67]
[1766906834585,3.72959529,124.2,124.17,0.67]
[1766906837085,0.69,124.2,124.17,0.67]
[1766906837774,3.72959529,124.2,124.17,0.67]
[1766906844995,0.69,124.2,124.17,0.67]
[1766906857403,3.03959529,124.2,124.16,3.23959529]
[1766906857593,0.67,124.19,124.16,3.90959529]
[1766906858118,0.67,124.19,124.17,0.67]
[1766906869822,1.94583517,124.2,124.17,0.67]
[1766906870007,2.66583517,124.2,124.17,0.67]
[1766906871521,0.72,124.19,124.17,0.67]
[1766906877926,0.72,124.19,124.17,0.26695685]
[1766906881128,0.72,124.2,124.17,0.26695685]
[1766906881442,8.77095146,124.21,124.18,0.67]
[1766906881641,5.43521859,124.2,124.18,0.67]
[1766906882447,6.15521859,124.2,124.18,0.67]
[1766906882645,0.72,124.2,124.18,0.67]
[1766906882848,0.72,124.2,124.17,1.94583517]
[1766906883042,0.72,124.2,124.17,2.61583517]
[1766906885851,0.72,124.2,124.17,0.67]
[1766906905944,0.72,124.2,124.16,2.14583517]
[1766906906266,0.66,124.19,124.16,0.85]
[1766906910073,0.66,124.18,124.16,0.2]
[1766906912572,0.66,124.18,124.14,10.10098434]
[1766906912782,2.60583517,124.15,124.14,0.1]
[1766906912954,0.66,124.15,124.14,0.1]
[1766906914750,2.60583517,124.15,124.14,0.1]
[1766906915377,0.66,124.15,124.14,0.1]
[1766906917255,2.60583517,124.15,124.14,0.1]
[1766906917471,0.66,124.14,124.13,0.2]
[1766906926284,2.63583517,124.15,124.13,0.2]
[1766906929978,3.73291316,124.15,124.13,0.2]
[1766906934289,0.69,124.15,124.13,0.2]
[1766906937888,3.71291316,124.17,124.14,0.66]
[1766906938278,0.67,124.16,124.14,0.66]
[1766906938769,0.67,124.16,124.13,0.2]
[1766906938969,0.67,124.16,124.13,0.86]
[1766906940694,0.67,124.18,124.14,0.66]
[1766906940877,0.67,124.17,124.14,0.66]
[1766906947475,3.71291316,124.18,124.14,0.66]
[1766906947798,0.67,124.17,124.14,0.66]
[1766906962999,0.67,124.17,124.14,3.70291316]
[1766906971307,0.67,124.17,124.15,0.68]
[1766906979230,6.10267884,124.17,124.15,0.68]
[1766906979521,0.67,124.17,124.15,0.68]
[1766906979997,6.10267884,124.17,124.15,0.68]
[1766906986604,0.67,124.17,124.15,0.68]
[1766906986812,6.10761694,124.17,124.15,0.68]
[1766906989325,5.43761694,124.17,124.16,0.72]
[1766906989528,0.71,124.19,124.16,0.72]
[1766906989737,5.43935432,124.18,124.16,0.72]
[1766906995233,6.14935432,124.18,124.16,0.72]
[1766906995434,0.71,124.18,124.16,0.72]
[1766907000136,5.43609018,124.17,124.16,0.72]
[1766907000512,0.71,124.18,124.16,0.72]
[1766907002437,2.65604985,124.19,124.16,0.72]
[1766907002640,5.43625125,124.18,124.16,0.72]
[1766907003427,6.14625125,124.18,124.16,0.72]
[1766907003617,0.71,124.18,124.16,0.72]
[1766907018835,0.66,124.19,124.16,0.72]
[1766907019031,5.42985048,124.18,124.16,0.72]
[1766907024259,0.66,124.19,124.16,0.72]
[1766907024446,5.43255174,124.18,124.16,0.72]
[1766907036456,5.43255174,124.18,124.14,8.05534038]
[1766907036654,0.66,124.17,124.14,0.7]
[1766907038243,0.66,124.17,124.14,8.75538395]
[1766907039559,0.66,124.17,124.14,8.05538395]
[1766907039766,0.66,124.17,124.15,0.7]
[1766907042680,2.60604985,124.19,124.15,0.7]
[1766907043049,0.66,124.18,124.15,0.7]
[1766907043577,6.10042928,124.18,124.15,0.7]
[1766907053879,5.44042928,124.18,124.15,10.00075661]
[1766907054182,3.70078186,124.19,124.16,0.65]
[1766907054488,5.44305906,124.18,124.16,0.65]
[1766907054784,0.66,124.19,124.16,0.65]
[1766907054987,5.44305906,124.18,124.16,0.65]
[1766907055161,0.66,124.19,124.16,0.65]
[1766907055481,5.44329547,124.18,124.16,0.65]
[1766907055774,0.66,124.19,124.16,0.65]
[1766907055975,5.44329207,124.18,124.16,0.65]
[1766907056177,0.66,124.19,124.16,0.65]
[1766907056357,5.44357845,124.18,124.16,0.65]
[1766907056562,0.66,124.19,124.16,0.65]
[1766907056764,5.44357845,124.18,124.16,0.65]
[1766907057086,3.70078186,124.19,124.16,0.65]
[1766907057387,5.44395119,124.18,124.16,0.65]
[1766907057590,3.70078186,124.19,124.16,0.65]
[1766907057799,5.44395119,124.18,124.16,0.65]
[1766907057993,3.70078186,124.19,124.16,0.65]
[1766907058288,5.44403296,124.18,124.16,0.65]
[1766907058587,3.70078186,124.19,124.16,0.65]
[1766907058789,5.44404511,124.18,124.16,0.65]
[1766907058991,3.70078186,124.19,124.16,0.65]
[1766907059184,5.44415534,124.18,124.16,0.65]
[1766907059483,3.70078186,124.19,124.16,0.65]
[1766907059688,5.44415534,124.18,124.16,0.65]
[1766907059886,3.70078186,124.19,124.16,0.65]
[1766907060077,5.44415534,124.18,124.16,0.65]
[1766907060279,3.70078186,124.19,124.16,0.65]
[1766907060494,5.44427767,124.18,124.16,0.65]
[1766907060670,3.70078186,124.19,124.16,0.65]
[1766907060972,5.44427767,124.18,124.16,0.65]
[1766907061292,3.70078186,124.19,124.16,0.65]
[1766907061495,5.44444472,124.18,124.16,0.65]
[1766907061701,3.70078186,124.19,124.16,0.65]
[1766907061880,5.44444472,124.18,124.16,0.65]
[1766907062081,3.70078186,124.19,124.16,0.65]
[1766907062380,5.44467383,124.18,124.16,0.65]
[1766907062581,3.70078186,124.19,124.16,0.65]
[1766907062775,5.44467383,124.18,124.16,0.65]
[1766907063005,3.70078186,124.19,124.16,0.65]
[1766907063189,5.44514419,124.18,124.16,0.65]
[1766907063389,3.70078186,124.19,124.16,0.65]
[1766907063590,5.44514419,124.18,124.16,0.65]
[1766907063780,3.70078186,124.19,124.16,0.65]
[1766907063982,5.44514419,124.18,124.16,0.65]
[1766907064181,3.70078186,124.19,124.16,0.65]
[1766907064482,5.44514569,124.18,124.16,0.65]
[1766907064682,3.70078186,124.19,124.16,0.65]
[1766907064882,5.44514569,124.18,124.16,0.65]
[1766907065083,3.70078186,124.19,124.16,0.65]
[1766907065383,5.44514689,124.18,124.16,0.65]
[1766907065586,3.70078186,124.19,124.16,0.65]
[1766907065881,5.44514578,124.18,124.16,0.65]
[1766907066078,3.70078186,124.19,124.16,0.65]
[1766907066301,5.44514585,124.18,124.16,0.65]
[1766907066487,3.70078186,124.19,124.16,0.65]
[1766907066688,5.44514585,124.18,124.16,0.65]
[1766907066900,3.70078186,124.19,124.16,0.65]
[1766907067093,5.44514585,124.18,124.16,0.65]
[1766907067293,3.70078186,124.19,124.16,0.65]
[1766907067486,5.44514426,124.18,124.16,0.65]
[1766907067687,3.70078186,124.19,124.16,0.65]
[1766907068004,5.44514426,124.18,124.16,0.65]
[1766907068203,3.70078186,124.19,124.16,0.65]
[1766907068406,5.44514421,124.18,124.16,0.65]
[1766907068705,3.70078186,124.19,124.16,0.65]
[1766907068907,5.44514421,124.18,124.16,0.65]
[1766907069083,3.70078186,124.19,124.16,0.65]
[1766907069284,5.44514523,124.18,124.16,0.65]
[1766907069485,3.70078186,124.19,124.16,0.65]
[1766907069691,5.44514413,124.18,124.16,0.65]
[1766907069986,3.04078186,124.19,124.16,0.65]
[1766907070315,6.10514523,124.18,124.16,0.65]
[1766907070515,0.66,124.18,124.16,0.65]
[1766907072913,3.70078186,124.19,124.16,0.65]
[1766907073119,5.44514683,124.18,124.16,0.65]
[1766907073309,3.70078186,124.19,124.16,0.65]
[1766907073508,5.44514876,124.18,124.16,0.65]
[1766907073809,3.70078186,124.19,124.16,0.65]
[1766907074007,5.44514765,124.18,124.16,0.65]
[1766907074193,3.70078186,124.19,124.16,0.65]
[1766907074394,5.44514879,124.18,124.16,0.65]
[1766907074593,3.70078186,124.19,124.16,0.65]
[1766907074796,5.44514879,124.18,124.16,0.65]
[1766907074997,3.70078186,124.19,124.16,0.65]
[1766907075318,5.44514651,124.18,124.16,0.65]
[1766907075490,3.70078186,124.19,124.16,0.65]
[1766907075691,5.44514483,124.18,124.16,0.65]
[1766907075900,3.70078186,124.19,124.16,0.65]
[1766907076101,5.44514483,124.18,124.16,0.65]
[1766907076299,3.70078186,124.19,124.16,0.65]
[1766907076520,5.44514485,124.18,124.16,0.65]
[1766907076722,3.70078186,124.19,124.16,0.65]
[1766907076895,5.44514485,124.18,124.16,0.65]
[1766907077096,3.70078186,124.19,124.16,0.65]
[1766907077316,5.44514538,124.18,124.16,0.65]
[1766907077495,3.70078186,124.19,124.16,0.65]
[1766907077695,5.44514538,124.18,124.16,0.65]
[1766907077908,3.70078186,124.19,124.16,0.65]
[1766907078118,5.44514538,124.18,124.16,0.65]
[1766907078319,3.70078186,124.19,124.16,0.65]
[1766907078512,5.44514485,124.18,124.16,0.65]
[1766907078714,3.70078186,124.19,124.16,0.65]
[1766907078895,5.44500255,124.18,124.16,0.65]
[1766907079095,3.70078186,124.19,124.16,0.65]
[1766907079319,5.44514333,124.18,124.16,0.65]
[1766907079621,3.70078186,124.19,124.16,0.65]
[1766907079920,5.44514443,124.18,124.16,0.65]
[1766907080120,3.70078186,124.19,124.16,0.65]
[1766907080334,5.44500171,124.18,124.16,0.65]
[1766907080490,3.70078186,124.19,124.16,0.65]
[1766907080695,5.44514401,124.18,124.16,0.65]
[1766907080911,3.70078186,124.19,124.16,0.65]
[1766907081102,5.4451429,124.18,124.16,0.65]
[1766907081302,3.70078186,124.19,124.16,0.65]
[1766907081503,5.44514151,124.18,124.16,0.65]
[1766907081705,3.70078186,124.19,124.16,0.65]
[1766907081905,5.44500032,124.18,124.16,0.65]
[1766907082130,3.70078186,124.19,124.16,0.65]
[1766907082424,5.44500295,124.18,124.16,0.65]
[1766907082597,3.70078186,124.19,124.16,0.65]
[1766907082797,5.44500295,124.18,124.16,0.65]
[1766907082998,3.70078186,124.19,124.16,0.65]
[1766907083199,5.44500295,124.18,124.16,0.65]
[1766907083424,3.70078186,124.19,124.16,0.65]
[1766907083606,5.44467372,124.18,124.16,0.65]
[1766907083810,3.70078186,124.19,124.16,0.65]
[1766907084016,5.44467261,124.18,124.16,0.65]
[1766907084204,3.70078186,124.19,124.16,0.65]
[1766907084508,5.44453909,124.18,124.16,0.65]
[1766907084710,3.70078186,124.19,124.16,0.65]
[1766907084924,5.44453909,124.18,124.16,0.65]
[1766907085141,3.70078186,124.19,124.16,0.65]
[1766907085429,5.44432658,124.18,124.16,0.65]
[1766907085626,3.70078186,124.19,124.16,0.65]
[1766907085922,5.44446775,124.18,124.16,0.65]
[1766907086228,3.70078186,124.19,124.16,0.65]
[1766907086408,5.44447731,124.18,124.16,0.65]
[1766907086724,3.70078186,124.19,124.16,0.65]
[1766907086928,5.44447731,124.18,124.16,0.65]
[1766907087227,3.70078186,124.19,124.16,0.65]
[1766907087526,5.44447965,124.18,124.16,0.65]
[1766907087725,3.70078186,124.19,124.16,0.65]
[1766907087934,5.44433848,124.18,124.16,0.65]
[1766907088122,3.70078186,124.19,124.16,0.65]
[1766907088428,5.44448883,124.18,124.16,0.65]
[1766907088628,3.70078186,124.19,124.16,0.65]
[1766907088832,5.44448883,124.18,124.16,0.65]
[1766907089026,3.70078186,124.19,124.16,0.65]
[1766907089327,5.44434935,124.18,124.16,0.65]
[1766907089521,3.70078186,124.19,124.16,0.65]
[1766907089826,5.44434935,124.18,124.16,0.65]
[1766907089998,3.70078186,124.19,124.16,0.65]
[1766907090201,5.44418592,124.18,124.16,0.65]
[1766907090422,3.70078186,124.19,124.16,0.65]
[1766907090627,5.44418702,124.18,124.16,0.65]
[1766907090829,3.70078186,124.19,124.16,0.65]
[1766907091127,5.44418592,124.18,124.16,0.65]
[1766907091330,3.70078186,124.19,124.16,0.65]
[1766907091528,5.44432962,124.18,124.16,0.65]
[1766907091709,3.70078186,124.19,124.16,0.65]
[1766907091910,5.44433073,124.18,124.16,0.65]
[1766907092119,3.70078186,124.19,124.16,0.65]
[1766907092319,5.44433194,124.18,124.16,0.65]
[1766907092521,3.70078186,124.19,124.16,0.65]
[1766907092721,5.44433194,124.18,124.16,0.65]
[1766907092911,3.70078186,124.19,124.16,0.65]
[1766907093111,5.44433194,124.18,124.16,0.65]
[1766907093414,3.70078186,124.19,124.16,0.65]
[1766907093612,5.44433459,124.18,124.16,0.65]
[1766907093913,3.70078186,124.19,124.16,0.65]
[1766907094104,5.44433459,124.18,124.16,0.65]
[1766907094306,3.70078186,124.19,124.16,0.65]
[1766907094599,5.44433731,124.18,124.16,0.65]
[1766907094803,3.70078186,124.19,124.16,0.65]
[1766907095011,5.44433842,124.18,124.16,0.65]
[1766907095305,3.70078186,124.19,124.16,0.65]
[1766907095505,5.44433978,124.18,124.16,0.65]
[1766907095728,3.70078186,124.19,124.16,0.65]
[1766907095912,5.44433978,124.18,124.16,0.65]
[1766907096114,3.70078186,124.19,124.16,0.65]
[1766907096414,5.4443423,124.18,124.16,0.65]
[1766907096611,3.70078186,124.19,124.16,0.65]
[1766907096827,5.44434231,124.18,124.16,0.65]
[1766907097030,0.66,124.19,124.16,0.65]
[1766907097231,5.44434499,124.18,124.16,0.65]
[1766907097429,0.66,124.19,124.16,0.65]
[1766907097630,5.44434499,124.18,124.16,0.65]
[1766907097816,0.66,124.19,124.16,0.65]
[1766907098010,5.44434499,124.18,124.16,0.65]
[1766907098213,0.66,124.19,124.16,0.65]
[1766907098415,5.44434804,124.18,124.16,0.65]
[1766907098715,0.66,124.19,124.16,0.65]
[1766907098914,5.44434915,124.18,124.16,0.65]
[1766907099110,0.66,124.19,124.16,0.65]
[1766907099312,5.44435053,124.18,124.16,0.65]
[1766907099510,0.66,124.19,124.16,0.65]
[1766907099718,5.44434943,124.18,124.16,0.65]
[1766907099933,0.66,124.19,124.16,0.65]
[1766907100134,5.44434943,124.18,124.16,0.65]
[1766907100436,0.66,124.19,124.16,0.65]
[1766907100611,5.44420942,124.18,124.16,0.65]
[1766907101336,0.66,124.19,124.16,0.65]
[1766907101635,5.44422127,124.18,124.16,0.65]
[1766907101836,3.04078186,124.2,124.16,3.04078186]
[1766907102037,5.44415746,124.19,124.17,0.68]
[1766907102239,5.44415746,124.18,124.17,0.68]
[1766907103035,5.44415746,124.18,124.16,3.72078186]
[1766907106433,5.44415746,124.18,124.17,3.71078186]
[1766907106434,4.72415746,124.18,124.17,3.71078186]
[1766907106729,0.68,124.21,124.18,0.35]
[1766907107035,0.68,124.21,124.18,3.39078186]
[1766907107222,9.84131846,124.23,124.18,3.04078186]
[1766907107420,0.68,124.23,124.2,3.39078186]
[1766907108717,0.68,124.23,124.2,11.44221873]
[1766907110549,0.68,124.24,124.21,3.39078186]
[1766907114022,0.68,124.24,124.21,2.29417208]
[1766907115530,0.66,124.26,124.22,1.94417208]
[1766907115735,0.66,124.25,124.22,1.94417208]
[1766907115935,0.66,124.25,124.21,10.34487526]
[1766907117350,2.60417208,124.25,124.21,10.34487526]
[1766907117525,0.66,124.24,124.21,10.34487526]
[1766907117940,0.66,124.24,124.21,8.40070318]
[1766907118247,0.66,124.23,124.2,17.01417208]
[1766907118752,1.94417208,124.23,124.19,10.34609466]
[1766907119052,0.66,124.22,124.19,10.34609466]
[1766907121054,0.66,124.22,124.19,9.99609466]
[1766907121253,0.66,124.22,124.19,10.34609466]
[1766907121756,0.66,124.23,124.2,0.35]
[1766907122054,0.66,124.23,124.2,2.29417208]
[1766907137664,0.66,124.23,124.2,0.35]
[1766907137870,0.66,124.23,124.2,2.29417208]
[1766907147178,1.94417208,124.23,124.19,10.34609466]
[1766907147363,0.71,124.22,124.19,10.34609466]
[1766907147679,0.71,124.22,124.2,1.94417208]
[1766907166393,0.71,124.22,124.19,8.40192258]
[1766907166590,0.71,124.22,124.2,1.94417208]
[1766907168093,0.71,124.22,124.19,10.34609466]
[1766907176003,0.71,124.22,124.19,11.44033461]
[1766907179407,0.71,124.22,124.2,0.35]